Workbook

Sheet Final en miles
A1: TVS WIRELESS S.A.C
A3: INFORME 1: RECONCILIACIÓN DEL ESTADO DE LA SITUACIÓN FINANCIERA ESTATUARIO CON EL DE CONTABILIDAD SEPARADA
A5: Periodo de reporte: Enero a Diciembre 2017
A7: Expresado en Miles de Soles | B7: Código Plan Contable | C7: Código PCR | D7: Estado de Situación Financiera Estatuaria | E7: Ajustes | F7: Estado de Situación Financiera de Contabilidad Separada | G7: Número de nota 1/.
A8: ACTIVO CORRIENTE | D8: =D9+D10+D11+D12+D13 -> 50687.33965 | E8: 0 | F8: 50687.33965
A9: Efectivo y equivalentes de efectivo | B9: 10 | C9: 10 | D9: 38.59978 | E9: 0 | F9: 38.59978
A10: Cuentas por cobrar a terceros, neto | B10: 12 | C10: 12 | D10: 3055.25511 | E10: 0 | F10: 3055.25511
A11: Cuentas por cobrar a la principal y vinculadas | B11: 13 | C11: 13 | D11: 47584.21422 | E11: 0 | F11: 47584.21422
A12: Existencias, neto | B12: 20 | C12: 20 | D12: 9.27054 | E12: 0 | F12: 9.27054
A13: Impuesto y gastos pagados anticipado | B13: 40 | C13: 40 | D13: 0 | E13: 0 | F13: 0
A14: ACTIVO NO CORRIENTE | D14: =+D15+D16+D57+D64+D65+D112+D113 -> 17367.55961 | E14: 1268.778623 | F14: 18636.33823
A15: Inversiones | B15: 30 | C15: 30 | D15: 0 | E15: 0 | F15: 0
A16: Activo Fijo Bruto | B16: NOTA1 | C16: 30 | D16: =+D17+D49 -> 781.25 | E16: -31.090625 | F16: 750.159375 | G16: 1
A17: Planta y Equipo de Comunicaciones | B17: NOTA1 | C17: 301 | D17: =+D18+D26+D27+D36+D43 -> 781.25 | E17: -31.090625 | F17: 750.159375 | G17: 1
A18: Equipos terminales | B18: NOTA1 | C18: 3011 | D18: =+D19+D20+D21+D22+D23+D24+D25 -> 0 | E18: 0 | F18: 0 | G18: 1
A19: Equipos terminales -Teléfonos de Abonados | B19: NOTA1 | C19: 30111 | D19: 0 | E19: 0 | F19: 0 | G19: 1
A20: Equipos terminales -Teléfonos Públicos | B20: NOTA1 | C20: 30112 | D20: 0 | E20: 0 | F20: 0 | G20: 1
A21: Equipos Terminales -Televisión de Paga | B21: NOTA1 | C21: 30113 | D21: 0 | E21: 0 | F21: 0 | G21: 1
A22: Equipos Terminales -Internet Fijo | B22: NOTA1 | C22: 30114 | D22: 0 | E22: 0 | F22: 0 | G22: 1
A23: Equipos Terminales -Telefonía Móvil | B23: NOTA1 | C23: 30115 | D23: 0 | E23: 0 | F23: 0 | G23: 1
A24: Equipos Terminales -Internet Móvil | B24: NOTA1 | C24: 30116 | D24: 0 | E24: 0 | F24: 0 | G24: 1
A25: Otros Equipos Terminales | B25: NOTA1 | C25: 30117 | D25: 0 | E25: 0 | F25: 0 | G25: 1
A26: Planta y Equipo de Acceso Local | B26: NOTA1 | C26: 3012 | D26: 0 | E26: 0 | F26: 0 | G26: 1
A27: Equipos Centrales y de agregación | B27: NOTA1 | C27: 3013 | D27: =+D28+D29+D30+D31+D32+D33+D34+D35 -> 0 | E27: 0 | F27: 0 | G27: 1
A28: Centrales Locales | B28: NOTA1 | C28: 30131 | D28: 0 | E28: 0 | F28: 0 | G28: 1
A29: Centrales de Larga Distancia Nacional | B29: NOTA1 | C29: 30132 | D29: 0 | E29: 0 | F29: 0 | G29: 1
A30: Centrales de Larga Distancia Internacional | B30: NOTA1 | C30: 30133 | D30: 0 | E30: 0 | F30: 0 | G30: 1
A31: Controladores | B31: NOTA1 | C31: 30134 | D31: 0 | E31: 0 | F31: 0 | G31: 1
A32: Gateways | B32: NOTA1 | C32: 30135 | D32: 0 | E32: 0 | F32: 0 | G32: 1
A33: Cabeceras | B33: NOTA1 | C33: 30136 | D33: 0 | E33: 0 | F33: 0 | G33: 1
A34: Transmisión de Datos (Servicio Final) | B34: NOTA1 | C34: 30137 | D34: 0 | E34: 0 | F34: 0 | G34: 1
A35: Otros equipos centrales | B35: NOTA1 | C35: 30138 | D35: 0 | E35: 0 | F35: 0 | G35: 1
A36: Transmisión (Gran capacidad) | B36: NOTA1 | C36: 3014 | D36: =+D37+D38+D39+D40+D41+D42 -> 0 | E36: 0 | F36: 0 | G36: 1
A37: Cables de Transmisión (excluidos internacional) | B37: NOTA1 | C37: 30141 | D37: 0 | E37: 0 | F37: 0 | G37: 1
A38: Equipos de Transmisión (excluidos internacional) | B38: NOTA1 | C38: 30142 | D38: 0 | E38: 0 | F38: 0 | G38: 1
A39: Equipos de Transmisión Radio | B39: NOTA1 | C39: 30143 | D39: 0 | E39: 0 | F39: 0 | G39: 1
A40: Equipos de Transmisión por Satélite | B40: NOTA1 | C40: 30144 | D40: 0 | E40: 0 | F40: 0 | G40: 1
A41: Cables y Equipos internacionales (excluyendo satélite) | B41: NOTA1 | C41: 30145 | D41: 0 | E41: 0 | F41: 0 | G41: 1
A42: Otros equipos de transmisión | B42: NOTA1 | C42: 30146 | D42: 0 | E42: 0 | F42: 0 | G42: 1
A43: Otros Activos Fijos Brutos de Comunicaciones | B43: NOTA1 | C43: 3015 | D43: =+D44+D45+D46+D47+D48 -> 781.25 | E43: -31.090625 | F43: 750.159375 | G43: 1
A44: Equipos de Fuerza (Planta Energía Eléctrica) | B44: NOTA1 | C44: 30151 | D44: 0 | E44: 0 | F44: 0 | G44: 1
A45: Sistemas de Gestión de Red | B45: NOTA1 | C45: 30152 | D45: 781.25 | E45: -31.090625 | F45: 750.159375 | G45: 1
A46: Equipos para Interconexión | B46: NOTA1 | C46: 30153 | D46: 0 | E46: 0 | F46: 0 | G46: 1
A47: Equipos para Circuitos Alquilados | B47: NOTA1 | C47: 30154 | D47: 0 | E47: 0 | F47: 0 | G47: 1
A48: Otros | B48: NOTA1 | C48: 30155 | D48: 0 | E48: 0 | F48: 0 | G48: 1
A49: Terreno, Edificios, Planta y Equipos no de Telecomunicaciones | B49: NOTA1 | C49: 302 | D49: =+D50+D51+D52+D53+D54+D55+D56 -> 0 | E49: 0 | F49: 0 | G49: 1
A50: Terrenos | B50: NOTA1 | C50: 3021 | D50: 0 | E50: 0 | F50: 0 | G50: 1
A51: Edificios | B51: NOTA1 | C51: 3022 | D51: 0 | E51: 0 | F51: 0 | G51: 1
A52: Vehículos y Ayudas Mecánicas | B52: NOTA1 | C52: 3023 | D52: 0 | E52: 0 | F52: 0 | G52: 1
A53: Equipos Sistemas Informáticos | B53: NOTA1 | C53: 3024 | D53: 0 | E53: 0 | F53: 0 | G53: 1
A54: Edificios en arrendamiento financiero | B54: NOTA1 | C54: 3025 | D54: 0 | E54: 0 | F54: 0 | G54: 1
A55: Otros activos bajo la forma de arrendamiento o leasing | B55: NOTA1 | C55: 3026 | D55: 0 | E55: 0 | F55: 0 | G55: 1
A56: Otros Activos no de comunicaciones | B56: NOTA1 | C56: 3027 | D56: 0 | E56: 0 | F56: 0 | G56: 1
A57: Activos Intangibles | B57: NOTA1 | C57: 31 | D57: =+D58+D59+D60+D61+D62+D63 -> 25582.33 | E57: 1439.458831 | F57: 27021.78883 | G57: 1
A58: Concesiones | B58: NOTA1 | C58: 311 | D58: 25582.33 | E58: 1439.458831 | F58: 27021.78883 | G58: 1
A59: Licencias | B59: NOTA1 | C59: 312 | D59: 0 | E59: 0 | F59: 0 | G59: 1
A60: Patentes y propiedad intelectual | B60: NOTA1 | C60: 313 | D60: 0 | E60: 0 | F60: 0 | G60: 1
A61: Software | B61: NOTA1 | C61: 314 | D61: 0 | E61: 0 | F61: 0 | G61: 1
A62: Investigación y Desarrollo | B62: NOTA1 | C62: 315 | D62: 0 | E62: 0 | F62: 0 | G62: 1
A63: Otros Activos Intangibles | B63: NOTA1 | C63: 316 | D63: 0 | E63: 0 | F63: 0 | G63: 1
A64: Otros Activos No Corrientes | B64: NOTA1 | C64: 32 | D64: 0 | E64: 0 | F64: 0 | G64: 1
A65: Depreciación del Activo Fijo Bruto, y Amortización | B65: NOTA1 | C65: 33 | D65: =+D66+D98+D105 -> -9033.688391 | E65: -139.5895827 | F65: -9173.277973 | G65: 1
A66: Depreciación de Planta y Equipo de Comunicaciones | B66: NOTA1 | C66: 341 | D66: =+D67+D75+D76+D85+D92 -> -312.50001 | E66: 11.53062534 | F66: -300.9693847 | G66: 1
A67: Equipos terminales | B67: NOTA1 | C67: 3411 | D67: =D68+D69+D70+D71+D72+D73+D74 -> 0 | E67: 0 | F67: 0 | G67: 1
A68: Equipos terminales -Teléfonos de Abonados | B68: NOTA1 | C68: 34111 | D68: 0 | E68: 0 | F68: 0 | G68: 1
A69: Equipos terminales -Teléfonos Públicos | B69: NOTA1 | C69: 34112 | D69: 0 | E69: 0 | F69: 0 | G69: 1
A70: Equipos Terminales -Televisión de Paga | B70: NOTA1 | C70: 34113 | D70: 0 | E70: 0 | F70: 0 | G70: 1
A71: Equipos Terminales -Internet Fijo | B71: NOTA1 | C71: 34114 | D71: 0 | E71: 0 | F71: 0 | G71: 1
A72: Equipos Terminales -Telefonía Móvil | B72: NOTA1 | C72: 34115 | D72: 0 | E72: 0 | F72: 0 | G72: 1
A73: Equipos Terminales -Internet Móvil | B73: NOTA1 | C73: 34116 | D73: 0 | E73: 0 | F73: 0 | G73: 1
A74: Otros Equipos Terminales | B74: NOTA1 | C74: 34117 | D74: 0 | E74: 0 | F74: 0 | G74: 1
A75: Planta y Equipo de Acceso Local | B75: NOTA1 | C75: 3412 | D75: 0 | E75: 0 | F75: 0 | G75: 1
A76: Equipos Centrales y de agregación | B76: NOTA1 | C76: 3413 | D76: =+D77+D78+D79+D80+D81+D82+D83+D84 -> 0 | E76: 0 | F76: 0 | G76: 1
A77: Centrales Locales | B77: NOTA1 | C77: 34131 | D77: 0 | E77: 0 | F77: 0 | G77: 1
A78: Centrales de Larga Distancia Nacional | B78: NOTA1 | C78: 34132 | D78: 0 | E78: 0 | F78: 0 | G78: 1
A79: Centrales de Larga Distancia Internacional | B79: NOTA1 | C79: 34133 | D79: 0 | E79: 0 | F79: 0 | G79: 1
A80: Controladores | B80: NOTA1 | C80: 34134 | D80: 0 | E80: 0 | F80: 0 | G80: 1
A81: Gateways | B81: NOTA1 | C81: 34135 | D81: 0 | E81: 0 | F81: 0 | G81: 1
A82: Cabeceras | B82: NOTA1 | C82: 34136 | D82: 0 | E82: 0 | F82: 0 | G82: 1
A83: Transmisión de Datos (Servicio Final) | B83: NOTA1 | C83: 34137 | D83: 0 | E83: 0 | F83: 0 | G83: 1
A84: Otros equipos centrales | B84: NOTA1 | C84: 34138 | D84: 0 | E84: 0 | F84: 0 | G84: 1
A85: Transmisión (Gran capacidad) | B85: NOTA1 | C85: 3414 | D85: =+D86+D87+D88+D89+D90+D91 -> 0 | E85: 0 | F85: 0 | G85: 1
A86: Cables de Transmisión (excluidos internacional) | B86: NOTA1 | C86: 34141 | D86: 0 | E86: 0 | F86: 0 | G86: 1
A87: Equipos de Transmisión (excluidos internacional) | B87: NOTA1 | C87: 34142 | D87: 0 | E87: 0 | F87: 0 | G87: 1
A88: Equipos de Transmisión Radio | B88: NOTA1 | C88: 34143 | D88: 0 | E88: 0 | F88: 0 | G88: 1
A89: Equipos de Transmisión por Satélite | B89: NOTA1 | C89: 34144 | D89: 0 | E89: 0 | F89: 0 | G89: 1
A90: Cables y Equipos internacionales (excluyendo satélite) | B90: NOTA1 | C90: 34145 | D90: 0 | E90: 0 | F90: 0 | G90: 1
A91: Otros equipos de transmisión | B91: NOTA1 | C91: 34146 | D91: 0 | E91: 0 | F91: 0 | G91: 1
A92: Otros Activos Fijos Brutos de Comunicaciones | B92: NOTA1 | C92: 3415 | D92: =+D93+D94+D95+D96+D97 -> -312.50001 | E92: 11.53062534 | F92: -300.9693847 | G92: 1
A93: Equipos de Fuerza (Planta Energía Eléctrica) | B93: NOTA1 | C93: 34151 | D93: 0 | E93: 0 | F93: 0 | G93: 1
A94: Sistemas de Gestión de Red | B94: NOTA1 | C94: 34152 | D94: -312.50001 | E94: 11.53062534 | F94: -300.9693847 | G94: 1
A95: Equipos para Interconexión | B95: NOTA1 | C95: 34153 | D95: 0 | E95: 0 | F95: 0 | G95: 1
A96: Equipos para Circuitos Alquilados | B96: NOTA1 | C96: 34154 | D96: 0 | E96: 0 | F96: 0 | G96: 1
A97: Otros | B97: NOTA1 | C97: 34155 | D97: 0 | E97: 0 | F97: 0 | G97: 1
A98: Depreciación de Edificios, y Planta y Equipos no de Telecomunicaciones | B98: NOTA1 | C98: 342 | D98: =+D99+D100+D101+D102+D103+D104 -> 0 | E98: 0 | F98: 0 | G98: 1
A99: Edificios | B99: NOTA1 | C99: 3421 | D99: 0 | E99: 0 | F99: 0 | G99: 1
A100: Vehículos y Ayudas Mecánicas | B100: NOTA1 | C100: 3422 | D100: 0 | E100: 0 | F100: 0 | G100: 1
A101: Equipos Sistemas Informáticos | B101: NOTA1 | C101: 3423 | D101: 0 | E101: 0 | F101: 0 | G101: 1
A102: Edificios en arrendamiento financiero | B102: NOTA1 | C102: 3424 | D102: 0 | E102: 0 | F102: 0 | G102: 1
A103: Otros activos bajo la forma de arrendamiento o leasing | B103: NOTA1 | C103: 3425 | D103: 0 | E103: 0 | F103: 0 | G103: 1
A104: Otros Activos no de comunicaciones | B104: NOTA1 | C104: 3426 | D104: 0 | E104: 0 | F104: 0 | G104: 1
A105: Amortización de Intangibles | B105: NOTA1 | C105: 343 | D105: =+D106+D107+D108+D109+D110+D111 -> -8721.188381 | E105: -151.120208 | F105: -8872.308589 | G105: 1
A106: Concesiones | B106: NOTA1 | C106: 3431 | D106: -7742.188381 | E106: -136.435208 | F106: -7878.623589 | G106: 1
A107: Licencias | B107: NOTA1 | C107: 3432 | D107: 0 | E107: 0 | F107: 0 | G107: 1
A108: Patentes y propiedad intelectual | B108: NOTA1 | C108: 3433 | D108: 0 | E108: 0 | F108: 0 | G108: 1
A109: Software | B109: NOTA1 | C109: 3434 | D109: 0 | E109: 0 | F109: 0 | G109: 1
A110: Investigación y Desarrollo | B110: NOTA1 | C110: 3435 | D110: 0 | E110: 0 | F110: 0 | G110: 1
A111: Otros Activos Intangibles | B111: NOTA1 | C111: 3436 | D111: -979 | E111: -14.685 | F111: -993.685 | G111: 1
A112: Gastos contratados por anticipado a largo plazo | B112: 18 | C112: 18 | D112: 0 | E112: 0 | F112: 0
A113: Activo por impuesto a las ganancias diferido, neto | B113: 49 | C113: 49 | D113: 37.668 | E113: 0 | F113: 37.668
A114: PASIVO CORRIENTE | D114: =+D115+D116+D117+D118+D119 -> -42598.63211 | E114: 0.058 | F114: -42598.57411
A115: Cuentas por pagar comerciales | B115: 42 | C115: 42 | D115: -1013.91801 | E115: 0 | F115: -1013.91801
A116: Cuentas por pagar a la principal y vinculadas | B116: 43 | C116: 43 | D116: -35833.49316 | E116: 0.058 | F116: -35833.43516
A117: Deuda Corto Plazo | B117: 45 | C117: 45 | D117: 0 | E117: 0 | F117: 0
A118: Otras cuentas por pagar | B118: 46 | C118: 46 | D118: -5745.03743 | E118: 0 | F118: -5745.03743
A119: Ingresos Diferidos | B119: 491 | C119: 491 | D119: -6.18351 | E119: 0 | F119: -6.18351
A120: PASIVO NO CORRIENTE | D120: =+D121+D122+D124+D123 -> -3958.9 | E120: 0 | F120: -3958.9
A121: Ingresos Diferidos | B121: 491 | C121: 491 | D121: -3958.9 | E121: 0 | F121: -3958.9
A122: Provisión de desmantelamiento de equipos | B122: 461 | C122: 461 | D122: 0 | E122: 0 | F122: 0
A123: Pasivo por Impuesto a la Renta | B123: 491 | C123: 491 | D123: 0 | E123: 0 | F123: 0
A124: Cuentas por pagar a la principal y vinculadas a largo plazo | B124: 471 | C124: 471 | D124: 0 | E124: 0 | F124: 0
A125: PATRIMONIO NETO | D125: =+D126+D127+D128+D129+D130+D131 -> -21497.36719 | E125: -1268.836623 | F125: -22766.20381
A126: Capital Social | B126: 50 | C126: 50 | D126: -23212.90692 | E126: 0 | F126: -23212.90692
A127: Descuento Capital | B127: 52 | C127: 52 | D127: 0 | E127: 0 | F127: 0
A128: Reserva Legal | B128: 58 | C128: 58 | D128: 0 | E128: 0 | F128: 0
A129: Otras Reservas | B129: 581 | C129: 581 | D129: 0 | E129: 0 | F129: 0
A130: Resultados por traslación | B130: 59 | C130: 59 | D130: 0 | E130: 0 | F130: 0
A131: Resultados Acumulados | B131: 591 | C131: 591 | D131: 1715.53973 | E131: -1268.836623 | F131: 446.7031069
